fUST/lending_fUST_20251126
["ID","MTS","AMOUNT","RATE_DAILY","PERIOD"]
[394899480,1764099047306,-500.0,0.00010958,2]
[394899481,1764099047316,-500.0,0.00010958,2]
[394899482,1764099047324,-500.0,0.00010958,2]
[394899483,1764099047334,-1109.54,0.00010958,2]
[394899484,1764099047342,-500.0,0.00010958,2]
[394899485,1764099047351,-625.7,0.00010958,2]
[394899486,1764099047360,-500.0,0.00010958,2]
[394899487,1764099047369,-500.0,0.00010958,2]
[394899488,1764099047378,-500.0,0.00010958,2]
[394899489,1764099047387,-500.0,0.00010958,2]
[394899490,1764099047396,-519.8,0.00010958,2]
[394899491,1764099047406,-755.22,0.00010958,2]
[394899492,1764099047415,-500.0,0.00010958,2]
[394899493,1764099047426,-500.0,0.00010958,2]
[394899494,1764099047435,-500.0,0.00010958,2]
[394899495,1764099047444,-563.2802437,0.00010958,2]
[394899496,1764099047453,-500.0,0.00010958,2]
[394899497,1764099047463,-551.63,0.00010958,2]
[394899498,1764099047472,-500.0,0.00010958,2]
[394899499,1764099047481,-879.57,0.00010958,2]
[394899500,1764099047490,-500.0,0.00010958,2]
[394899501,1764099047499,-500.0,0.00010958,2]
[394899502,1764099047508,-500.0,0.00010958,2]
[394899503,1764099047518,-359.38174705,0.00010958,2]
[394899504,1764099047527,-807.9,0.00010958,2]
[394899505,1764099047536,-500.0,0.00010958,2]
[394899506,1764099047553,-1197.75,0.00010958,2]
[394899507,1764099047575,-500.0,0.00010958,2]
[394899508,1764099047587,-500.0,0.00010958,2]
[394899509,1764099047595,-500.0,0.00010958,2]
[394899510,1764099047605,-500.0,0.00010958,2]
[394899511,1764099047614,-1399.99,0.00010958,2]
[394899512,1764099047623,-500.0,0.00010958,2]
[394899513,1764099047631,-500.0,0.00010958,2]
[394899514,1764099047641,-500.0,0.00010958,2]
[394899515,1764099047650,-514.12,0.00010958,2]
[394899516,1764099047659,-516.17,0.00010958,2]
[394899517,1764099047668,-500.0,0.00010958,2]
[394899518,1764099047678,-500.0,0.00010958,2]
[394899519,1764099047687,-500.0,0.00010958,2]
[394899520,1764099047696,-500.0,0.00010958,2]
[394899521,1764099047705,-569.59,0.00010958,2]
[394899522,1764099047715,-532.76580524,0.00010958,2]
[394899523,1764099047724,-2710.36,0.00010958,2]
[394899524,1764099047734,-635.52,0.00010958,2]
[394899525,1764099047743,-500.0,0.00010958,2]
[394899526,1764099047752,-500.0,0.00010958,2]
[394899527,1764099047762,-1310.34,0.00010958,2]
[394899528,1764099047897,-500.0,0.00010958,2]
[394899529,1764099047907,-717.97,0.00010958,2]
[394899530,1764099047917,-500.0,0.00010958,2]
[394899531,1764099047926,-500.0,0.00010958,2]
[394899532,1764099047936,-627.87,0.00010958,2]
[394899533,1764099047946,-500.0,0.00010958,2]
[394899534,1764099047955,-500.0,0.00010958,2]
[394899535,1764099047964,-500.0,0.00010958,2]
[394899536,1764099047974,-520.0212412,0.00010958,2]
[394899537,1764099047983,-500.0,0.00010958,2]
[394899538,1764099047992,-500.0,0.00010958,2]
[394899539,1764099048001,-500.0,0.00010958,2]
[394899540,1764099048011,-641.92,0.00010958,2]
[394899541,1764099048021,-1134.87,0.00010958,2]
[394899542,1764099048030,-500.0,0.00010958,2]
[394899543,1764099048040,-500.0,0.00010958,2]
[394899544,1764099048048,-500.0,0.00010958,2]
[394899545,1764099048058,-500.0,0.00010958,2]
[394899546,1764099048067,-725.87,0.00010958,2]
[394899547,1764099048076,-500.0,0.00010958,2]
[394899548,1764099048085,-393.34077592,0.00010958,2]
[394899549,1764099048094,-500.0,0.00010958,2]
[394899550,1764099048103,-500.0,0.00010958,2]
[394899551,1764099048116,-561.37285751,0.00010958,2]
[394899552,1764099048125,-519.97,0.00010958,2]
[394899553,1764099048135,-500.0,0.00010958,2]
[394899554,1764099048144,-333.94406485,0.00010958,2]
[394899555,1764099048155,-296.24211286,0.00010958,2]
[394899556,1764099048165,-500.0,0.00010958,2]
[394899557,1764099048174,-1448.08,0.00010958,2]
[394899558,1764099048184,-500.0,0.00010958,2]
[394899559,1764099048193,-500.0,0.00010958,2]
[394899560,1764099048202,-438.51865576,0.00010958,2]
[394899561,1764099048212,-500.0,0.00010958,2]
[394899562,1764099048222,-500.0,0.00010958,2]
[394899563,1764099048231,-500.0,0.00010958,2]
[394899564,1764099048240,-1001.03,0.00010958,2]
[394899565,1764099048249,-1307.59,0.00010958,2]
[394899566,1764099048259,-500.0,0.00010958,2]
[394899567,1764099048268,-500.0,0.00010958,2]
[394899568,1764099048277,-2337.7,0.00010958,2]
[394899569,1764099048286,-536.4646685,0.00010958,2]
[394899570,1764099048295,-500.0,0.00010958,2]
[394899571,1764099048304,-500.0,0.00010958,2]
[394899572,1764099048313,-500.0,0.00010958,2]
[394899573,1764099048322,-500.0,0.00010958,2]
[394899574,1764099048331,-500.0,0.00010958,2]
[394899575,1764099048340,-500.0,0.00010958,2]
[394899576,1764099048349,-475.40764716,0.00010958,2]
[394899577,1764099048359,-500.0,0.00010958,2]
[394899578,1764099048368,-570.09894025,0.00010958,2]
[394899579,1764099048377,-500.0,0.00010958,2]
[394899580,1764099048387,-500.0,0.00010958,2]
[394899581,1764099048396,-500.0,0.00010958,2]
[394899582,1764099048405,-207.00727322,0.00010958,2]
[394899583,1764099048414,-416.22460944,0.00010958,2]
[394899584,1764099048423,-225.45460372,0.00010958,2]
[394899585,1764099048433,-370.99390779,0.00010958,2]
[394899586,1764099048442,-500.0,0.00010958,2]
[394899587,1764099048451,-500.0,0.00010958,2]
[394899588,1764099048461,-1601.49,0.00010958,2]
[394899589,1764099048470,-500.0,0.00010958,2]
[394899590,1764099048480,-500.0,0.00010958,2]
[394899591,1764099048489,-385.457641,0.00010958,2]
[394899592,1764099048500,-500.0,0.00010958,2]
[394899593,1764099048509,-498.3340734,0.00010958,2]
[394899594,1764099048519,-576.95675847,0.00010958,2]
[394899595,1764099048528,-500.0,0.00010958,2]
[394899596,1764099048537,-500.0,0.00010958,2]
[394899597,1764099048546,-613.35,0.00010958,2]
[394899598,1764099048555,-458.2757381,0.00010958,2]
[394899599,1764099048565,-257.79218546,0.00010958,2]
[394899600,1764099048574,-497.96231184,0.00010958,2]
[394899601,1764099048583,-550.98407572,0.00010958,2]
[394899602,1764099048592,-190.6572474,0.00010958,2]
[394899603,1764099048601,-424.18177215,0.00010958,2]
[394899604,1764099048610,-500.0,0.00010958,2]
[394899605,1764099048619,-500.0,0.00010958,2]
[394899606,1764099048628,-500.0,0.00010958,2]
[394899607,1764099048637,-500.0,0.00010958,2]
[394899608,1764099048647,-500.0,0.00010958,2]
[394899609,1764099048656,-521.07763037,0.00010958,2]
[394899610,1764099048665,-500.0,0.00010958,2]
[394899611,1764099048674,-500.0,0.00010958,2]
[394899612,1764099048683,-199.28310182,0.00010958,2]
[394899613,1764099048692,-520.87286372,0.00010958,2]
[394899614,1764099048701,-500.0,0.00010958,2]
[394899615,1764099048710,-500.0,0.00010958,2]
[394899616,1764099048719,-500.0,0.00010958,2]
[394899617,1764099048729,-500.0,0.00010958,2]
[394899618,1764099048738,-375.16926263,0.00010958,2]
[394899619,1764099048747,-559.81503751,0.00010958,2]
[394899620,1764099048759,-500.0,0.00010958,2]
[394899621,1764099048768,-500.0,0.00010958,2]
[394899622,1764099048778,-500.0,0.00010958,2]
[394899623,1764099048787,-500.0,0.00010958,2]
[394899624,1764099048796,-500.0,0.00010958,2]
[394899625,1764099048805,-194.96203629,0.00010958,2]
[394899626,1764099048816,-1698.99,0.00010958,2]
[394899627,1764099048825,-519.90671605,0.00010958,2]
[394899628,1764099048834,-500.0,0.00010958,2]
[394899629,1764099048843,-500.0,0.00010958,2]
[394899630,1764099048853,-500.0,0.00010958,2]
[394899631,1764099048862,-535.25756651,0.00010958,2]
[394899632,1764099048871,-500.0,0.00010958,2]
[394899633,1764099048880,-500.0,0.00010958,2]
[394899634,1764099048889,-38000.0,0.00010958,2]
[394899635,1764099048898,-500.0,0.00010958,2]
[394899636,1764099048908,-500.0,0.00010958,2]
[394899637,1764099048917,-524.07738067,0.00010958,2]
[394899638,1764099048926,-377.55716639,0.00010958,2]
[394899639,1764099048936,-754.51,0.00010958,2]
[394899640,1764099048945,-500.0,0.00010958,2]
[394899641,1764099048954,-397.98738176,0.00010958,2]
[394899642,1764099048963,-201.47634472,0.00010958,2]
[394899643,1764099048973,-1760.11,0.00010958,2]
[394899644,1764099048982,-219.52549863,0.00010958,2]
[394899645,1764099048991,-500.0,0.00010958,2]
[394899646,1764099049000,-500.0,0.00010958,2]
[394899647,1764099049009,-527.04,0.00010958,2]
[394899648,1764099049018,-321.98268563,0.00010958,2]
[394899649,1764099049027,-500.0,0.00010958,2]
[394899650,1764099049037,-500.0,0.00010958,2]
[394899651,1764099049046,-560.71463773,0.00010958,2]
[394899652,1764099049055,-500.0,0.00010958,2]
[394899653,1764099049064,-3246.46,0.00010958,2]
[394899654,1764099049074,-500.0,0.00010958,2]
[394899655,1764099049083,-447.0888011,0.00010958,2]
[394899656,1764099049092,-500.0,0.00010958,2]
[394899657,1764099049101,-500.0,0.00010958,2]
[394899658,1764099049114,-500.0,0.00010958,2]
[394899659,1764099049123,-500.0,0.00010958,2]
[394899660,1764099049131,-1000.0,0.00010958,2]
[394899661,1764099049140,-1140.97,0.00010958,2]
[394899662,1764099049151,-500.0,0.00010958,2]
[394899663,1764099049160,-500.0,0.00010958,2]
[394899664,1764099049168,-500.0,0.00010958,2]
[394899665,1764099049178,-385.67571101,0.00010958,2]
[394899666,1764099049187,-1675.45,0.00010958,2]
[394899667,1764099049198,-500.0,0.00010958,2]
[394899668,1764099049207,-253.52494463,0.00010958,2]
[394899669,1764099049218,-500.0,0.00010958,2]
[394899670,1764099049227,-500.0,0.00010958,2]
[394899671,1764099049235,-500.0,0.00010958,2]
[394899672,1764099049245,-500.0,0.00010958,2]
[394899673,1764099049254,-1457.17,0.00010958,2]
[394899674,1764099049263,-618.33,0.00010958,2]
[394899675,1764099049272,-500.0,0.00010958,2]
[394899676,1764099049281,-712.52,0.00010958,2]
[394899677,1764099049290,-417.49661723,0.00010958,2]
[394899678,1764099049299,-530.53,0.00010958,2]
[394899679,1764099049309,-1339.37,0.00010958,2]
[394899680,1764099049317,-633.08,0.00010958,2]
[394899681,1764099049326,-526.78247971,0.00010958,2]
[394899682,1764099049335,-500.0,0.00010958,2]
[394899683,1764099049344,-500.0,0.00010958,2]
[394899684,1764099049353,-514.30694795,0.00010958,2]
[394899685,1764099049362,-500.0,0.00010958,2]
[394899686,1764099049371,-500.0,0.00010958,2]
[394899687,1764099049380,-500.0,0.00010958,2]
[394899688,1764099049389,-8328.75,0.00010958,2]
[394899689,1764099049400,-500.0,0.00010958,2]
[394899690,1764099049409,-500.0,0.00010958,2]
[394899691,1764099049418,-536.07913794,0.00010958,2]
[394899692,1764099049427,-531.17422367,0.00010958,2]
[394899693,1764099049436,-500.0,0.00010958,2]
[394899694,1764099049445,-547.74376577,0.00010958,2]
[394899695,1764099049454,-428.47501687,0.00010958,2]
[394899696,1764099049464,-528.75100021,0.00010958,2]
[394899697,1764099049472,-500.0,0.00010958,2]
[394899698,1764099049482,-465.37445116,0.00010958,2]
[394899699,1764099049491,-730.49,0.00010958,2]
[394899700,1764099049500,-500.0,0.00010958,2]
[394899701,1764099049510,-246.55365839,0.00010958,2]
[394899702,1764099049519,-891.65,0.00010958,2]
[394899703,1764099049528,-500.0,0.00010958,2]
[394899704,1764099049537,-500.0,0.00010958,2]
[394899705,1764099049546,-379.83991648,0.00010958,2]
[394899706,1764099049555,-500.0,0.00010958,2]
[394899707,1764099049564,-500.0,0.00010958,2]
[394899708,1764099049573,-500.0,0.00010958,2]
[394899709,1764099049582,-500.0,0.00010958,2]
[394899710,1764099049592,-500.0,0.00010958,2]
[394899711,1764099049602,-500.0,0.00010958,2]
[394899712,1764099049611,-500.0,0.00010958,2]
[394899713,1764099049620,-500.0,0.00010958,2]
[394899714,1764099049629,-516.9109794,0.00010958,2]
[394899715,1764099049638,-500.0,0.00010958,2]
[394899716,1764099049647,-500.0,0.00010958,2]
[394899717,1764099049656,-607.33862247,0.00010958,2]
[394899718,1764099049665,-578.11408772,0.00010958,2]
[394899719,1764099049674,-1121.47,0.00010958,2]
[394899720,1764099049683,-171.48827517,0.00010958,2]
[394899721,1764099049692,-503.33660304,0.00010958,2]
[394899722,1764099049701,-500.0,0.00010958,2]
[394899723,1764099049710,-724.21,0.00010958,2]
[394899724,1764099049720,-500.0,0.00010958,2]
[394899725,1764099049730,-500.0,0.00010958,2]
[394899726,1764099049739,-517.18346443,0.00010958,2]
[394899727,1764099049749,-519.63755722,0.00010958,2]
[394899728,1764099049758,-500.21221852,0.00010958,2]
[394899729,1764099049768,-502.64518644,0.00010958,2]
[394899730,1764099049778,-512.83331226,0.00010958,2]
[394899731,1764099049902,-519.20987134,0.00010958,2]
[394899732,1764099049913,-500.0,0.00010958,2]
[394899733,1764099049922,-276.63545583,0.00010958,2]
[394899734,1764099049932,-500.0,0.00010958,2]
[394899735,1764099049942,-775.69,0.00010958,2]
[394899736,1764099049952,-500.0,0.00010958,2]
[394899737,1764099049961,-255.73661174,0.00010958,2]
[394899738,1764099049971,-2205.5,0.00010958,2]
[394899739,1764099049982,-513.26010093,0.00010958,2]
[394899740,1764099049991,-500.0,0.00010958,2]
[394899741,1764099050001,-1088.06,0.00010958,2]
[394899742,1764099050010,-2339.45,0.00010958,2]
[394899743,1764099050019,-517.68,0.00010958,2]
[394899744,1764099050028,-500.0,0.00010958,2]
[394899745,1764099050037,-500.0,0.00010958,2]
[394899746,1764099050047,-526.99323098,0.00010958,2]
[394899747,1764099050056,-500.0,0.00010958,2]
[394899748,1764099050065,-1826.55,0.00010958,2]
[394899749,1764099050075,-1943.81,0.00010958,2]
[394899750,1764099050084,-751.94,0.00010958,2]
[394899751,1764099050093,-552.93667424,0.00010958,2]
[394899752,1764099050103,-581.82895607,0.00010958,2]
[394899753,1764099050116,-365.12639523,0.00010958,2]
[394899754,1764099050126,-534.95709207,0.00010958,2]
[394899755,1764099050135,-904.29,0.00010958,2]
[394899756,1764099050144,-774.88,0.00010958,2]
[394899757,1764099050154,-1872.97,0.00010958,2]
[394899758,1764099050164,-615.77,0.00010958,2]
[394899759,1764099050172,-500.0,0.00010958,2]
[394899760,1764099050183,-500.0,0.00010958,2]
[394899761,1764099050191,-500.0,0.00010958,2]
[394899762,1764099050201,-519.85968127,0.00010958,2]
[394899763,1764099050211,-504.54543068,0.00010958,2]
[394899764,1764099050220,-500.0,0.00010958,2]
[394899765,1764099050229,-624.9116702,0.00010958,2]
[394899766,1764099050239,-500.0,0.00010958,2]
[394899767,1764099050248,-500.0,0.00010958,2]
[394899768,1764099050257,-530.76,0.00010958,2]
[394899769,1764099050266,-5472.84,0.00010958,2]
[394899770,1764099050275,-261.775403,0.00010958,2]
[394899771,1764099050284,-500.0,0.00010958,2]
[394899772,1764099050293,-510.942003,0.00010958,2]
[394899773,1764099050302,-591.77,0.00010958,2]
[394899774,1764099050313,-500.0,0.00010958,2]
[394899775,1764099050322,-473.13282432,0.00010958,2]
[394899776,1764099050332,-1265.76,0.00010958,2]
[394899777,1764099050342,-451.48670563,0.00010958,2]
[394899778,1764099050352,-501.65364736,0.00010958,2]
[394899779,1764099050362,-500.0,0.00010958,2]
[394899780,1764099050375,-218.11187084,0.00010958,2]
[394899781,1764099050384,-500.0,0.00010958,2]
[394899782,1764099050393,-413.14293716,0.00010958,2]
[394899783,1764099050403,-500.0,0.00010958,2]
[394899784,1764099050412,-537.16,0.00010958,2]
[394899785,1764099050421,-2955.61,0.00010958,2]
[394899786,1764099050431,-2185.47,0.00010958,2]
[394899787,1764099050440,-346.13067175,0.00010958,2]
[394899788,1764099050449,-500.0,0.00010958,2]
[394899789,1764099050459,-500.0,0.00010958,2]
[394899790,1764099050468,-1746.85,0.00010958,2]
[394899791,1764099050478,-500.0,0.00010958,2]
[394899792,1764099050487,-547.24691373,0.00010958,2]
[394899793,1764099050496,-1639.14,0.00010958,2]
[394899794,1764099050506,-2881.47,0.00010958,2]
[394899795,1764099050515,-500.0,0.00010958,2]
[394899796,1764099050525,-1111.96,0.00010958,2]
[394899797,1764099050534,-2623.36,0.00010958,2]
[394899798,1764099050543,-500.0,0.00010958,2]
[394899799,1764099050552,-500.0,0.00010958,2]
[394899800,1764099050561,-500.0,0.00010958,2]
[394899801,1764099050570,-501.91710782,0.00010958,2]
[394899802,1764099050579,-500.0,0.00010958,2]
[394899803,1764099050589,-4694.9,0.00010958,2]
[394899804,1764099050598,-551.62382708,0.00010958,2]
[394899805,1764099050607,-546.39886015,0.00010958,2]
[394899806,1764099050616,-500.0,0.00010958,2]
[394899807,1764099050625,-206.0013073,0.00010958,2]
[394899808,1764099050634,-500.0,0.00010958,2]
[394899809,1764099050644,-512.23387012,0.00010958,2]
[394899810,1764099050653,-500.0,0.00010958,2]
[394899811,1764099050662,-500.0,0.00010958,2]
[394899812,1764099050671,-1931.47,0.00010958,2]
[394899813,1764099050680,-2141.71,0.00010958,2]
[394899814,1764099050689,-1477.84,0.00010958,2]
[394899815,1764099050699,-533.77,0.00010958,2]
[394899816,1764099050708,-500.0,0.00010958,2]
[394899817,1764099050719,-500.0,0.00010958,2]
[394899818,1764099050728,-500.0,0.00010958,2]
[394899819,1764099050737,-479.3680702,0.00010958,2]
[394899820,1764099050747,-500.0,0.00010958,2]
[394899821,1764099050756,-500.0,0.00010958,2]
[394899822,1764099050766,-509.47161617,0.00010958,2]
[394899823,1764099050775,-500.0,0.00010958,2]
[394899824,1764099050785,-500.0,0.00010958,2]
[394899825,1764099050795,-500.0,0.00010958,2]
[394899826,1764099050805,-509.20197182,0.00010958,2]
[394899827,1764099050815,-159.75040861,0.00010958,2]
[394899828,1764099050824,-500.0,0.00010958,2]
[394899829,1764099050834,-500.0,0.00010958,2]
[394899830,1764099050844,-3516.57,0.00010958,2]
[394899831,1764099050855,-1823.41,0.00010958,2]
[394899832,1764099050864,-500.0,0.00010958,2]
[394899833,1764099050874,-923.25,0.00010958,2]
[394899834,1764099050884,-6281.6,0.00010958,2]
[394899835,1764099050893,-500.0,0.00010958,2]
[394899836,1764099050902,-500.0,0.00010958,2]
[394899837,1764099050912,-552.04,0.00010958,2]
[394899838,1764099050921,-500.0,0.00010958,2]
[394899839,1764099050931,-500.0,0.00010958,2]
[394899840,1764099050941,-500.0,0.00010958,2]
[394899841,1764099050951,-500.0,0.00010958,2]
[394899842,1764099050960,-500.0,0.00010958,2]
[394899843,1764099050969,-2792.1,0.00010958,2]
[394899844,1764099050979,-3135.39,0.00010958,2]
[394899845,1764099050988,-239.02437253,0.00010958,2]
[394899846,1764099050997,-1332.61,0.00010958,2]
[394899847,1764099051006,-2197.66,0.00010958,2]
[394899848,1764099051016,-500.0,0.00010958,2]
[394899849,1764099051025,-510.49959773,0.00010958,2]
[394899850,1764099051035,-659.4,0.00010958,2]
[394899851,1764099051044,-517.99145496,0.00010958,2]
[394899852,1764099051053,-565.32074849,0.00010958,2]
[394899853,1764099051062,-1012.98,0.00010958,2]
[394899854,1764099051071,-500.0,0.00010958,2]
[394899855,1764099051081,-536.9770947,0.00010958,2]
[394899856,1764099051090,-1202.03,0.00010958,2]
[394899857,1764099051100,-499.59730207,0.00010958,2]
[394899858,1764099051115,-853.22,0.00010958,2]
[394899859,1764099051124,-1513.66,0.00010958,2]
[394899860,1764099051133,-500.0,0.00010958,2]
[394899861,1764099051142,-529.49,0.00010958,2]
[394899862,1764099051153,-501.36,0.00010958,2]
[394899863,1764099051163,-500.0,0.00010958,2]
[394899864,1764099051176,-500.0,0.00010958,2]
[394899865,1764099051187,-284.75955383,0.00010958,2]
[394899866,1764099051198,-500.0,0.00010958,2]
[394899867,1764099051207,-500.0,0.00010958,2]
[394899868,1764099051217,-500.03707589,0.00010958,2]
[394899869,1764099051227,-500.0,0.00010958,2]
[394899870,1764099051236,-3068.81,0.00010958,2]
[394899871,1764099051245,-500.0,0.00010958,2]
[394899872,1764099051255,-1124.66,0.00010958,2]
[394899873,1764099051264,-518.29669017,0.00010958,2]
[394899874,1764099051273,-500.0,0.00010958,2]
[394899875,1764099051282,-1462.56,0.00010958,2]
[394899876,1764099051291,-396.12481657,0.00010958,2]
[394899877,1764099051300,-500.0,0.00010958,2]
[394899878,1764099051309,-500.0,0.00010958,2]
[394899879,1764099051318,-500.0,0.00010958,2]
[394899880,1764099051328,-500.0,0.00010958,2]
[394899881,1764099051337,-2904.67,0.00010958,2]
[394899882,1764099051346,-5465.24,0.00010958,2]
[394899883,1764099051355,-517.38,0.00010958,2]
[394899884,1764099051365,-500.0,0.00010958,2]
[394899885,1764099051374,-499.77978008,0.00010958,2]
[394899886,1764099051382,-500.0,0.00010958,2]
[394899887,1764099051392,-500.0,0.00010958,2]
[394899888,1764099051401,-595.9,0.00010958,2]
[394899889,1764099051410,-500.0,0.00010958,2]
[394899890,1764099051419,-400.60734126,0.00010958,2]
[394899891,1764099051428,-500.0,0.00010958,2]
[394899892,1764099051437,-507.05,0.00010958,2]
[394899893,1764099051446,-423.25464821,0.00010958,2]
[394899894,1764099051455,-1034.01,0.00010958,2]
[394899895,1764099051465,-2831.69,0.00010958,2]
[394899896,1764099051473,-282.06203104,0.00010958,2]
[394899897,1764099051483,-550.07791245,0.00010958,2]
[394899898,1764099051492,-500.0,0.00010958,2]
[394899899,1764099051502,-500.0,0.00010958,2]
[394899900,1764099051511,-500.0,0.00010958,2]
[394899901,1764099051520,-753.73,0.00010958,2]
[394899902,1764099051529,-500.0,0.00010958,2]
[394899903,1764099051538,-500.0,0.00010958,2]
[394899904,1764099051548,-500.0,0.00010958,2]
[394899905,1764099051557,-443.75940586,0.00010958,2]
[394899906,1764099051566,-500.0,0.00010958,2]
[394899907,1764099051575,-500.0,0.00010958,2]
[394899908,1764099051584,-640.24,0.00010958,2]
[394899909,1764099051593,-528.7,0.00010958,2]
[394899910,1764099051601,-500.0,0.00010958,2]
[394899911,1764099051611,-13460.7,0.00010958,2]
[394899912,1764099051621,-560.90216084,0.00010958,2]
[394899913,1764099051630,-500.0,0.00010958,2]
[394899914,1764099051639,-1389.23,0.00010958,2]
[394899915,1764099051649,-500.0,0.00010958,2]
[394899916,1764099051658,-500.0,0.00010958,2]
[394899917,1764099051667,-178.97357557,0.00010958,2]
[394899918,1764099051786,-487.98576957,0.00010958,2]
[394899919,1764099051796,-569.56310975,0.00010958,2]
[394899920,1764099051805,-500.0,0.00010958,2]
[394899921,1764099051814,-500.0,0.00010958,2]
[394899922,1764099051823,-500.0,0.00010958,2]
[394899923,1764099051832,-3213.91,0.00010958,2]
[394899924,1764099051842,-592.53,0.00010958,2]
[394899925,1764099051851,-1263.83,0.00010958,2]
[394899926,1764099051860,-500.0,0.00010958,2]
[394899927,1764099051869,-483.12422747,0.00010958,2]
[394899928,1764099051878,-3463.96,0.00010958,2]
[394899929,1764099051888,-500.0,0.00010958,2]
[394899930,1764099051897,-500.0,0.00010958,2]
[394899931,1764099051906,-500.0,0.00010958,2]
[394899932,1764099051915,-2311.99,0.00010958,2]
[394899933,1764099051925,-500.0,0.00010958,2]
[394899934,1764099051934,-724.7,0.00010958,2]
[394899935,1764099051943,-500.0,0.00010958,2]
[394899936,1764099051953,-500.0,0.00010958,2]
[394899937,1764099051962,-350.12883875,0.00010958,2]
[394899938,1764099051972,-500.0,0.00010958,2]
[394899939,1764099051981,-1300.95,0.00010958,2]
[394899940,1764099051991,-473.22417549,0.00010958,2]
[394899941,1764099052000,-500.0,0.00010958,2]
[394899942,1764099052010,-1428.46,0.00010958,2]
[394899943,1764099052019,-999.0,0.00010959,2]
[394899944,1764099052029,-151.0,0.00010959,2]
[394899945,1764099052039,-151.0,0.00010959,2]
[394899946,1764099052048,-151.0,0.00010959,2]
[394899947,1764099052058,-151.0,0.00010959,2]
[394899948,1764099052067,-151.0,0.00010959,2]
[394899949,1764099052076,-151.0,0.00010959,2]
[394899950,1764099052085,-151.0,0.00010959,2]
[394899951,1764099052095,-151.0,0.00010959,2]
[394899952,1764099052104,-151.0,0.00010959,2]
[394899953,1764099052117,-220.765835,0.00010959,2]
[394899954,1764099052126,-13946.746475,0.00010959,2]
[394899955,1764099052137,-932.71531292,0.00010959,2]
[394899956,1764099052147,-500.0,0.00010959,2]
[394899957,1764099052158,-932.71531292,0.00010959,2]
[394899958,1764099052167,-500.0,0.00010959,2]
[394899959,1764099052176,-932.71531292,0.00010959,2]
[394899960,1764099052187,-500.0,0.00010959,2]
[394899961,1764099052197,-932.71531292,0.00010959,2]
[394899962,1764099052207,-500.0,0.00010959,2]
[394899963,1764099052217,-932.71531292,0.00010959,2]
[394899964,1764099052226,-500.0,0.00010959,2]
[394899965,1764099052235,-932.71531292,0.00010959,2]
[394899966,1764099052245,-500.0,0.00010959,2]
[394899967,1764099052254,-932.71531292,0.00010959,2]
[394899968,1764099052263,-932.71531292,0.00010959,2]
[394899969,1764099052272,-500.0,0.00010959,2]
[394899970,1764099052281,-932.71531292,0.00010959,2]
[394899971,1764099052290,-500.0,0.00010959,2]
[394899972,1764099052299,-932.71531292,0.00010959,2]
[394899973,1764099052308,-500.0,0.00010959,2]
[394899974,1764099052317,-932.71531292,0.00010959,2]
[394899975,1764099052326,-932.71531292,0.00010959,2]
[394899976,1764099052335,-500.0,0.00010959,2]
[394899977,1764099052344,-932.71531292,0.00010959,2]
[394899978,1764099052353,-500.0,0.00010959,2]
[394899979,1764099052362,-500.0,0.00010959,2]